bitfinex/quotes_ETHUSD_20250422
["timestamp","ask_amount","ask_price","bid_price","bid_amount"]
[1745288950908,6.99830604,1571.9,1571.5,7.1895791]
[1745288951079,6.36203404,1571.9,1571.5,7.1894013]
[1745288951280,6.36154199,1572.0,1571.6,6.36281675]
[1745288951482,6.36078979,1572.2,1571.8,6.36191597]
[1745288951693,6.36078979,1572.2,1571.8,13.51791597]
[1745288951867,6.36031285,1572.3,1571.9,7.16369349]
[1745288952301,6.3597049,1572.4,1571.4,7.156]
[1745288952477,6.36145447,1572.0,1571.6,6.36279596]
[1745288952663,6.36106938,1572.1,1571.6,6.36262032]
[1745288952867,6.36106938,1572.1,1571.7,6.36230549]
[1745288953302,6.36054906,1572.2,1571.8,6.36177012]
[1745288953606,6.3603823,1572.3,1571.9,7.1635711]
[1745288953907,12.72081379,1572.3,1571.9,7.1635711]
[1745288954323,12.72081379,1572.3,1572.0,6.959]
[1745288954820,6.36058903,1572.2,1572.0,6.959]
[1745288955329,6.35986121,1572.4,1572.0,6.959]
[1745288955497,6.35986121,1572.4,1572.0,13.32012557]
[1745288956012,6.36008848,1572.4,1572.0,15.36842193]
[1745288956623,6.75645431,1572.7,1572.3,6.35987679]
[1745288956845,0.3977842,1572.7,1572.5,0.7616]
[1745288957021,6.75648155,1572.7,1572.4,6.959]
[1745288957395,0.3977842,1572.7,1572.4,6.959]
[1745288957804,0.3977842,1572.7,1572.4,13.31862274]
[1745288958293,0.3977842,1572.7,1572.4,13.31842367]
[1745288958493,0.3977842,1572.7,1572.4,15.77170321]
[1745288959420,6.75627627,1572.7,1572.4,9.41216769]
[1745288959747,6.75647685,1572.7,1572.4,6.959]
[1745288960030,6.35943346,1572.5,1572.0,7.12273817]
[1745288960231,6.35990102,1572.4,1572.0,7.12273817]
[1745288960393,6.35990102,1572.4,1572.0,7.12272883]
[1745288960589,6.35910315,1572.6,1572.2,6.36033082]
[1745288960822,6.35910315,1572.6,1572.2,12.72049232]
[1745288961132,6.35910315,1572.6,1572.2,6.36024049]
[1745288961430,6.75649333,1572.7,1572.4,6.35942897]
[1745288961431,0.3977842,1572.7,1572.4,6.35942897]
[1745288961661,0.3977842,1572.7,1572.4,7.12102897]
[1745288961863,0.3977842,1572.7,1572.5,6.35917245]
[1745288962067,0.3977842,1572.7,1572.5,13.31617245]
[1745288962365,0.3977842,1572.7,1572.6,7.75409642]
[1745288962880,0.3977842,1572.7,1572.6,7.69051333]
[1745288963772,0.3977842,1572.7,1572.6,1.33161724]
[1745288963978,0.3977842,1572.7,1572.5,6.957]
[1745288964173,0.3977842,1572.7,1572.5,13.31593837]
[1745288964472,0.3977842,1572.7,1572.6,6.35889609]
[1745288965797,0.3977842,1572.7,1572.5,17.40753786]
[1745288965798,0.3977842,1572.7,1572.5,6.957]
[1745288965945,0.3977842,1572.7,1572.6,6.35889609]
[1745288966276,0.3977842,1572.7,1572.5,13.31611169]
[1745288966588,6.36047374,1572.3,1572.1,7.7714]
[1745288966775,6.75640075,1572.7,1572.1,7.7714]
[1745288966953,6.36005458,1572.4,1572.1,7.7714]
[1745288967147,7.03461262,1572.6,1572.1,7.7714]
[1745288967383,6.36038888,1572.3,1572.1,6.956]
[1745288967586,6.35993681,1572.4,1572.1,6.956]
[1745288967990,6.36047945,1572.3,1572.1,6.956]
[1745288968354,6.35989129,1572.4,1572.1,6.956]
[1745288968550,6.35989129,1572.4,1572.0,6.36107912]
[1745288968766,6.36010939,1572.3,1571.8,20.981]
[1745288969056,6.36111921,1572.1,1571.8,27.34308253]
[1745288969654,6.36036093,1572.3,1571.9,6.36152458]
[1745288970068,12.71986449,1572.4,1572.0,6.36110052]
[1745288970270,6.35986532,1572.4,1572.0,12.72210565]
[1745288970595,13.86734393,1572.7,1572.3,6.36010044]
[1745288970760,13.11530802,1572.7,1572.3,6.36010044]
[1745288971095,13.11532564,1572.7,1572.3,6.36004199]
[1745288971687,6.75646379,1572.7,1572.3,6.35991566]
[1745288971888,6.75646379,1572.7,1572.3,12.71972282]
[1745288972093,13.11525951,1572.7,1572.3,7.63181298]
[1745288972293,6.35891408,1572.6,1572.3,7.63181298]
[1745288972463,6.35948673,1572.5,1572.1,18.22369559]
[1745288972658,6.35891408,1572.6,1572.2,6.36035776]
[1745288972860,6.35891408,1572.6,1572.2,12.72059756]
[1745288973065,6.35891408,1572.6,1572.3,6.36003801]
[1745288974193,0.3977842,1572.7,1572.5,0.8154]
[1745288974394,6.75628318,1572.7,1572.5,0.8154]
[1745288974599,0.3977842,1572.7,1572.5,0.8154]
[1745288975104,0.3977842,1572.7,1572.5,1.53289093]
[1745288975394,0.3977842,1572.7,1572.5,14.84799103]
[1745288975768,0.3977842,1572.7,1572.2,6.956]
[1745288976007,6.35917101,1572.6,1572.2,19.67661739]
[1745288976178,6.75651979,1572.7,1572.3,6.36010871]
[1745288976367,6.75651979,1572.7,1572.2,19.67649847]
[1745288976695,6.35896199,1572.6,1572.2,17.40784298]
[1745288976875,6.35908628,1572.6,1572.2,19.19716123]
[1745288977074,6.75651979,1572.7,1572.3,6.36007327]
[1745288977272,6.75651979,1572.7,1572.4,6.956]
[1745288977662,13.11535015,1572.7,1572.4,6.956]
[1745288977862,6.35893895,1572.6,1572.4,6.956]
[1745288978961,6.75651979,1572.7,1572.4,6.956]
[1745288979161,13.11532158,1572.7,1572.4,6.956]
[1745288979356,6.35890542,1572.6,1572.4,6.956]
[1745288979900,13.11540097,1572.7,1572.4,6.956]
[1745288980206,6.75651979,1572.7,1572.4,6.956]
[1745288981420,13.11530649,1572.7,1572.4,6.956]
[1745288981586,13.11528947,1572.7,1572.4,6.956]
[1745288982014,13.11530856,1572.7,1572.4,6.956]
[1745288982418,6.75651979,1572.7,1572.4,6.956]
[1745288982716,0.3977842,1572.7,1572.4,15.41207373]
[1745288983515,0.3977842,1572.7,1572.4,15.41192137]
[1745288983723,0.3977842,1572.7,1572.5,6.35905929]
[1745288984142,0.3977842,1572.7,1572.6,6.35889609]
[1745288984683,0.3977842,1572.7,1572.6,10.12369609]
[1745288984896,0.3977842,1572.7,1572.6,12.86504954]
[1745288987403,0.3977842,1572.7,1572.6,0.7648]
[1745288987610,0.3977842,1572.7,1572.6,7.12369609]
[1745288988132,0.3977842,1572.7,1572.4,1.33158575]
[1745288988317,0.3977842,1572.7,1572.2,6.707]
[1745288988490,6.36010939,1572.3,1572.1,6.707]
[1745288988835,0.8108,1572.5,1572.1,6.707]
[1745288988836,6.3598975,1572.4,1572.1,6.707]
[1745288989398,6.3598975,1572.4,1572.0,7.12584461]
[1745288989735,6.35997581,1572.4,1572.1,6.707]
[1745288990238,6.36031123,1572.3,1572.1,6.707]
[1745288990419,6.36051392,1572.2,1572.1,6.707]
[1745288990586,6.36031123,1572.3,1572.1,6.707]
[1745288990989,6.36051392,1572.2,1572.0,6.707]
[1745288991999,6.36051392,1572.2,1571.8,7.12674853]
[1745288992204,6.36051392,1572.2,1571.9,6.708]
[1745288992802,6.36121437,1572.1,1571.9,6.708]
[1745288993022,6.36412231,1571.4,1570.9,13.0736337]
[1745288993202,6.36496579,1571.2,1570.9,6.708]
[1745288993400,6.36434283,1571.3,1571.0,0.6708]
[1745288993799,6.36434283,1571.3,1571.0,6.708]
[1745288994013,6.36396684,1571.4,1571.0,6.708]
[1745288994599,12.72810047,1571.4,1571.0,6.708]
[1745288995121,6.36334712,1571.5,1571.1,6.709]
[1745288995311,6.36456211,1571.2,1571.1,6.709]
[1745288996031,6.36360755,1571.5,1571.1,13.74461007]
[1745288996189,6.36360755,1571.5,1571.1,7.3799]
[1745288996398,6.36428647,1571.3,1571.1,7.3799]
[1745288996834,12.7287731,1571.3,1571.1,7.3799]
[1745288996994,6.36428647,1571.3,1571.1,6.709]
[1745288997199,6.36356461,1571.5,1571.1,13.07395546]
[1745288997423,12.7273094,1571.5,1571.1,13.07395546]
[1745288997626,6.36379873,1571.4,1571.1,6.709]
[1745288998132,6.36337354,1571.5,1571.2,0.7894]
[1745288998825,0.8108,1571.7,1571.2,0.7894]
[1745288999015,6.36388076,1571.4,1571.2,0.7894]
[1745288999341,6.36336368,1571.5,1571.2,0.7894]
[1745288999537,7.17336496,1571.7,1571.2,0.7894]
[1745288999538,6.36317316,1571.6,1571.2,0.7894]
[1745288999738,6.36314461,1571.6,1571.2,0.7894]
[1745288999941,6.36348852,1571.5,1571.2,1.66998167]
[1745289000143,7.17360448,1571.7,1571.3,6.36390355]
[1745289000311,6.36232511,1571.8,1571.4,6.36349421]
[1745289000518,6.36257938,1571.7,1571.5,6.71]
[1745289001146,6.36375522,1571.4,1571.2,6.711]
[1745289001302,6.36415706,1571.3,1571.2,6.711]
[1745289002343,7.18456722,1571.1,1570.9,6.711]
[1745289002525,6.36350618,1571.5,1570.7,20.97]
[1745289002526,0.8196,1571.4,1570.7,20.97]
[1745289002706,6.36516079,1571.1,1570.7,30.1045106]
[1745289002904,6.36474654,1571.2,1570.7,30.10440631]
[1745289003227,6.3651361,1571.1,1570.7,30.10450958]
[1745289003422,6.3651361,1571.1,1570.7,30.10446485]
[1745289003636,7.18353929,1571.4,1570.9,7.1549874]
[1745289003936,7.18353929,1571.4,1571.0,13.07709247]
[1745289004641,0.8196,1571.4,1571.0,13.07709247]
[1745289004837,6.36357378,1571.5,1571.1,6.4284728]
[1745289005040,6.36314124,1571.6,1571.3,0.7894]
[1745289005248,6.3627483,1571.7,1571.3,7.15341951]
[1745289005463,0.8196,1571.6,1570.8,1.55586461]
[1745289005614,6.3647745,1571.2,1570.8,10.92202716]
[1745289005922,7.18399011,1571.3,1570.9,6.36561557]
[1745289006124,7.18399011,1571.3,1570.8,10.92182879]
[1745289006324,6.36487039,1571.2,1570.8,11.71122879]
[1745289006532,6.36497696,1571.1,1570.8,11.71122879]
[1745289006748,6.36487039,1571.2,1570.8,11.71122879]
[1745289006930,6.36487039,1571.2,1570.8,11.71119963]
[1745289007130,6.36499304,1571.1,1570.8,8.71144107]
[1745289007333,6.36499304,1571.1,1570.8,0.7894]
[1745289007731,6.36575669,1571.0,1570.8,0.7894]
[1745289007951,6.36456211,1571.2,1570.7,27.682]
[1745289007952,6.36577757,1570.9,1570.7,27.682]
[1745289008138,6.36560933,1571.0,1570.7,27.682]
[1745289008928,6.36480696,1571.2,1570.7,37.45325847]
[1745289009131,7.18402379,1571.3,1570.9,6.36558123]
[1745289009350,7.18402379,1571.3,1570.9,7.17708123]
[1745289009518,13.54856812,1571.3,1570.9,7.17708123]
[1745289009718,6.36460816,1571.2,1570.9,7.17708123]
[1745289009920,6.36460816,1571.2,1570.9,0.8115]
[1745289010658,6.36460816,1571.2,1570.9,1.82924112]
[1745289010840,6.36460816,1571.2,1570.9,0.8115]
[1745289011033,6.36500476,1571.1,1570.7,38.26472754]
[1745289011230,0.8196,1571.3,1570.7,31.89837224]
[1745289011433,6.36596286,1570.9,1570.7,27.682]
[1745289011825,6.36519701,1571.1,1570.7,27.682]
[1745289012158,6.36521555,1571.1,1570.7,27.682]
[1745289012322,6.36521555,1571.1,1570.7,34.04834728]
[1745289012523,6.36521555,1571.1,1570.7,37.45318201]
[1745289012764,12.7305626,1571.1,1570.7,37.45318201]
[1745289013066,0.8196,1571.3,1570.9,6.36576141]
[1745289013458,0.8196,1571.3,1571.0,6.36518229]
[1745289013626,7.18391343,1571.3,1570.9,7.17700536]
[1745289013959,7.18391343,1571.3,1570.7,35.28390656]
[1745289013960,6.36512804,1571.1,1570.7,27.682]
[1745289014259,6.36456211,1571.2,1570.8,6.36597704]
[1745289014558,2.17438469,1571.3,1570.7,27.682]
[1745289014559,6.36565421,1571.0,1570.7,27.682]
[1745289014732,6.36518162,1571.1,1570.7,34.04834332]
[1745289015134,6.36478304,1571.2,1570.7,34.04834332]
[1745289015135,8.53876443,1571.3,1570.9,6.36559772]
[1745289015540,6.36456357,1571.2,1570.9,6.36559772]
[1745289016039,6.36456357,1571.2,1570.8,6.36594052]
[1745289016238,6.36800227,1570.4,1570.2,1.13219383]
[1745289016442,0.769,1570.6,1570.0,21.8005]
[1745289016759,6.36846705,1570.3,1569.9,6.56]
[1745289017358,6.36796832,1570.4,1570.0,6.36915058]
[1745289017557,6.36796832,1570.4,1570.0,8.29902581]
[1745289017726,12.73542334,1570.5,1570.1,6.36893416]
[1745289017926,6.36782435,1570.4,1570.1,6.36893416]
[1745289018125,6.36782435,1570.4,1570.0,8.29903611]
[1745289018847,6.36782435,1570.4,1570.0,8.2992656]
[1745289019175,6.36782435,1570.4,1570.0,14.6684416]
[1745289019326,6.36782435,1570.4,1570.0,8.2990419]
[1745289019521,12.73537225,1570.5,1570.1,6.36893939]
[1745289019728,6.36796195,1570.4,1570.0,8.2990419]
[1745289019926,7.13760115,1570.3,1569.9,6.56]
[1745289020163,6.36880907,1570.2,1569.9,6.56]
[1745289020529,0.769,1570.3,1569.9,6.56]
[1745289020829,0.769,1570.3,1570.0,6.36924623]
[1745289021527,0.769,1570.3,1569.8,1.12367475]
[1745289021843,6.36983247,1569.9,1569.8,0.005]
[1745289022830,6.36960938,1570.0,1569.8,0.005]
[1745289023030,6.36983247,1569.9,1569.8,0.005]
[1745289025375,8.99567665,1569.9,1569.8,1e-08]
[1745289025558,12.48426029,1569.9,1569.8,1e-08]
[1745289025739,12.83116512,1569.9,1569.8,1e-08]
[1745289026133,6.37310761,1569.1,1568.9,0.005]
[1745289026535,7.17486338,1569.2,1568.9,0.005]
[1745289026839,8.52959604,1569.2,1568.9,0.005]
[1745289027165,6.37348629,1569.0,1568.9,0.005]
[1745289028065,7.12918629,1569.0,1568.9,0.005]
[1745289028627,7.67918629,1569.0,1568.9,0.005]
[1745289028832,6.37585825,1568.5,1568.0,12.94234405]
[1745289029075,0.7557,1568.5,1568.1,6.37714228]
[1745289029281,6.37617747,1568.4,1568.0,6.565]
[1745289029483,6.37694105,1568.2,1567.7,6.37841002]
[1745289029794,6.37637802,1568.3,1567.8,11.35454894]
[1745289029957,6.37677281,1568.2,1567.8,7.15747711]
[1745289030282,6.37736336,1568.1,1567.7,6.37876256]
[1745289030594,7.65209386,1568.2,1567.6,4.97637183]
[1745289030753,6.37714762,1568.1,1567.7,6.37852553]
[1745289030955,7.65209386,1568.2,1567.8,6.37820529]
[1745289031290,7.13300524,1568.1,1567.7,6.37873811]
[1745289032070,7.13300524,1568.1,1567.7,6.37853566]
[1745289032289,2.23422698,1568.1,1567.6,12.75793722]
[1745289032575,7.13308895,1568.1,1567.7,12.75714906]
[1745289032779,7.13308895,1568.1,1567.7,6.3785148]
[1745289032989,7.13308895,1568.1,1567.7,12.75703398]
[1745289033146,7.13308895,1568.1,1567.6,6.37900877]
[1745289033478,7.13308895,1568.1,1567.5,12.944423]
[1745289033479,0.7557,1568.1,1567.8,6.37822949]
[1745289033789,6.37653968,1568.3,1567.8,6.44185099]
[1745289033953,0.7557,1568.4,1568.0,6.37741443]
[1745289034152,7.13059912,1568.7,1568.3,6.37632384]
[1745289034346,0.7557,1568.7,1568.2,0.7793]
[1745289034560,7.1293872,1569.0,1568.6,6.37503998]
[1745289034763,1.35473266,1569.2,1568.9,6.37374285]
[1745289034978,7.72756418,1569.2,1568.8,6.37391806]
[1745289035178,1.35473266,1569.2,1568.9,6.37371041]
[1745289035399,6.37165297,1569.5,1569.1,6.37275783]
[1745289035694,6.37251565,1569.3,1568.8,6.37389345]
[1745289035855,6.37281128,1569.2,1568.8,6.37389345]
[1745289036051,6.37329451,1569.1,1568.7,13.72297248]
[1745289036365,6.37366086,1569.0,1568.7,7.3483]
[1745289036551,6.37366086,1569.0,1568.7,6.569]
[1745289037726,6.37502541,1568.7,1568.2,6.37643806]
[1745289037932,6.37502541,1568.7,1568.3,6.37628818]
[1745289038089,6.37502541,1568.7,1568.2,6.37651016]
[1745289038422,7.64988509,1568.7,1568.2,6.3763903]
[1745289038611,7.64997926,1568.7,1568.2,6.37636926]
[1745289038811,1.27495415,1568.7,1568.2,6.37636926]
[1745289039011,6.37499768,1568.7,1568.2,6.3765037]
[1745289039217,6.37449086,1568.8,1568.3,6.37630591]
[1745289039595,6.37484531,1568.7,1568.3,6.37630591]
[1745289039893,6.37487677,1568.7,1568.3,6.37615569]
[1745289040113,6.37513977,1568.6,1568.2,12.94536582]
[1745289040316,7.01265375,1568.6,1568.2,12.94536582]
[1745289041143,0.63751398,1568.6,1568.3,6.37631865]
[1745289041508,6.37452096,1568.8,1568.3,7.15366761]
[1745289041721,12.7491595,1568.8,1568.4,6.37591563]
[1745289041907,6.37373196,1569.0,1568.6,6.37503084]
[1745289042108,12.45390304,1568.9,1568.6,6.37503084]
[1745289042347,12.45390304,1568.9,1568.7,6.43816095]
[1745289042348,6.08,1568.9,1568.7,6.43816095]
[1745289042503,6.08,1569.0,1568.7,6.37441296]
[1745289042834,6.37534811,1568.6,1568.1,7.15452034]
[1745289043131,12.45534811,1568.6,1568.2,6.3765787]
[1745289043298,12.45534811,1568.6,1568.1,0.7776]
[1745289043495,6.08,1568.6,1568.3,12.75236064]
[1745289043745,12.45532261,1568.6,1568.2,6.37650818]
[1745289044041,20.79071979,1568.6,1568.2,6.37650818]
[1745289044214,14.4152283,1568.6,1568.2,6.37650818]
[1745289044743,6.37557044,1568.5,1568.1,7.15448485]
[1745289044952,12.45557044,1568.5,1568.2,6.37671758]
[1745289045099,6.08,1568.5,1568.2,6.37671758]
[1745289045500,6.08,1568.5,1568.3,6.37612804]
[1745289045700,6.08,1568.5,1568.2,6.37645311]
[1745289046300,6.08,1568.5,1568.3,6.37607576]
[1745289046935,6.08,1568.5,1568.2,6.37650521]
[1745289047255,8.58,1568.4,1567.1,6.38102683]
[1745289047399,0.7688,1568.3,1567.0,6.38131235]
[1745289047599,6.3794673,1567.6,1567.2,6.38068085]
[1745289047902,0.7688,1567.7,1566.9,7.15959116]
[1745289047903,6.38036322,1567.4,1566.9,13.68940185]
[1745289048255,6.37977495,1567.5,1566.9,7.3076]
[1745289048411,6.37977495,1567.5,1567.1,12.76223566]
[1745289048612,7.65569075,1567.5,1567.1,6.38104288]
[1745289048820,7.65569075,1567.5,1567.1,6.38096544]
[1745289049135,6.37960663,1567.5,1567.1,6.38102308]
[1745289049342,6.37960663,1567.5,1567.1,6.38106346]
[1745289049651,6.38001198,1567.4,1567.0,6.38143175]
[1745289050140,12.75982243,1567.5,1567.0,6.38135122]
[1745289050320,6.38007001,1567.4,1567.0,6.38135122]
[1745289050639,6.37932771,1567.6,1567.2,6.3805743]
[1745289050845,6.37994593,1567.5,1567.1,6.3810372]
[1745289051015,6.37999765,1567.4,1567.0,6.38140679]
[1745289051220,6.37982355,1567.5,1566.9,7.15939056]
[1745289051546,0.7688,1567.5,1566.8,6.531]
[1745289051804,6.38176585,1567.0,1566.8,6.531]
[1745289051948,6.38085183,1567.2,1566.8,6.38241539]
[1745289052151,6.38167408,1567.0,1566.4,0.3977842]
[1745289052445,6.38222841,1566.9,1566.5,6.38351243]
[1745289052648,6.38222841,1566.9,1566.4,0.3977842]
[1745289052649,6.38365783,1566.5,1566.4,0.3977842]
[1745289052852,2.04550717,1566.5,1565.9,6.38596118]
[1745289053153,0.7688,1566.8,1566.4,6.38389578]
[1745289053364,0.7688,1566.8,1566.2,6.3846799]
[1745289053540,0.7688,1566.8,1565.9,3.7776]
[1745289053541,6.38463912,1566.3,1565.9,0.7776]
[1745289053750,7.17536646,1566.2,1565.3,7.16451246]
[1745289053961,0.7903,1566.2,1565.5,4.10492016]
[1745289054252,7.892682,1566.2,1565.7,6.3867636]
[1745289054459,7.892682,1566.2,1565.6,12.92008007]
[1745289054756,6.38219134,1566.9,1565.5,4.10492016]
[1745289054757,0.7903,1566.9,1566.2,3.0]
[1745289054954,0.7903,1566.9,1566.4,6.38381137]
[1745289055246,6.38380659,1566.5,1566.1,6.38511212]
[1745289055580,7.81302977,1566.4,1566.0,6.38563898]
[1745289055782,1.42868066,1566.4,1566.2,6.38459139]
[1745289055956,7.17318063,1566.7,1566.3,6.38447296]
[1745289056151,6.08,1566.9,1566.6,6.38305827]
[1745289056473,7.17207283,1567.0,1566.5,6.38343416]
[1745289056784,7.17206361,1567.0,1566.6,6.38285947]
[1745289057477,0.7903,1567.0,1566.8,6.38228555]
[1745289057679,0.8017,1567.2,1566.9,6.38196553]
[1745289057882,0.8017,1567.2,1566.6,6.38325035]
[1745289058080,0.8017,1567.6,1567.4,6.37975591]
[1745289058244,0.8017,1567.6,1567.4,12.75957158]
[1745289058447,6.37853196,1567.8,1567.1,6.3812137]
[1745289058448,0.8017,1567.8,1567.5,6.37938904]
[1745289058685,6.37728488,1568.1,1567.1,6.3812137]
[1745289058686,7.17909417,1568.1,1567.7,6.37877144]
[1745289058983,0.71790942,1568.0,1567.6,6.37894896]
[1745289059312,0.8017,1568.4,1568.2,6.37670973]
[1745289059588,4.19199664,1568.5,1568.2,6.37643507]
[1745289059749,4.19199664,1568.5,1568.3,6.37612097]
[1745289060079,4.19199664,1568.5,1568.4,6.3759245]
[1745289060284,4.19199664,1568.5,1568.2,6.37653367]
[1745289060479,4.19199664,1568.5,1568.4,6.3759245]
[1745289060680,4.19199664,1568.5,1568.1,6.808]
[1745289060987,4.19199664,1568.5,1568.3,6.37601673]
[1745289061154,4.19199664,1568.5,1568.1,6.808]
[1745289061483,4.19199664,1568.5,1568.3,6.37605019]
[1745289061671,0.8017,1568.7,1568.3,6.37605019]
[1745289061867,7.17657518,1568.7,1568.3,6.37605019]
[1745289062072,2.15680841,1568.7,1568.4,6.37590808]
[1745289062476,2.15680841,1568.7,1568.3,6.37605019]
[1745289062652,2.15680841,1568.7,1568.1,6.808]
[1745289062980,2.15680841,1568.7,1568.4,6.3758787]
[1745289063189,0.8017,1569.0,1568.4,4.10492016]
[1745289063354,0.8017,1569.0,1568.7,6.3745517]
[1745289063560,0.8017,1569.0,1568.7,6.37446246]
[1745289063773,0.8017,1569.4,1568.9,6.37350376]
[1745289063973,6.37268134,1569.2,1568.8,6.37410898]
[1745289064176,0.63726813,1569.1,1568.8,6.37410898]
[1745289064369,0.63726813,1569.1,1568.7,6.3744457]
[1745289064601,7.01037567,1569.1,1568.7,6.3744457]
[1745289064788,0.63726813,1569.1,1568.7,6.37442418]
[1745289064997,0.63726813,1569.1,1568.5,6.807]
[1745289065296,0.8017,1569.0,1568.6,12.74966586]
[1745289065596,1.58292959,1569.0,1568.7,6.37455345]
[1745289065760,6.37247691,1569.3,1568.6,6.805]
[1745289065761,7.1742485,1569.3,1568.6,6.805]
[1745289065962,6.37282743,1569.2,1568.8,6.37426199]
[1745289066363,6.37282743,1569.2,1568.8,12.74830669]
[1745289066578,7.17422016,1569.3,1568.9,6.37380236]
[1745289066902,0.71742202,1569.2,1568.9,6.3738813]
[1745289067078,0.8017,1569.3,1568.9,6.37361698]
[1745289067278,7.17402572,1569.3,1568.9,6.37361698]
[1745289067479,0.8017,1569.3,1569.0,6.37335003]
[1745289067799,0.8017,1569.3,1569.0,6.3734779]
[1745289068014,1.51908339,1569.3,1569.0,6.3734779]
[1745289069186,0.8017,1569.3,1569.1,6.37269377]
[1745289069394,6.37575411,1568.5,1568.0,6.37755077]
[1745289069591,6.37653134,1568.3,1567.8,6.37800138]
[1745289069779,6.37676734,1568.2,1567.6,7.20661247]
[1745289069982,6.37676734,1568.2,1567.8,6.37818531]
[1745289070217,1.43727541,1568.4,1567.8,6.803]
[1745289070381,0.7997,1568.6,1567.9,3.06377282]
[1745289070563,0.7997,1568.6,1568.2,12.75283241]
[1745289070768,0.7997,1568.6,1568.4,6.3755574]
[1745289070968,6.37434512,1568.8,1568.4,6.37572497]
[1745289072093,6.37389253,1568.9,1568.3,13.44109518]
[1745289072293,6.37488919,1568.7,1568.3,13.44109175]
[1745289072467,6.37432514,1568.8,1568.4,6.37568439]
[1745289072664,0.7997,1569.0,1568.8,6.37407278]
[1745289072868,6.37293966,1569.2,1568.8,6.37411593]
[1745289072869,7.17263966,1569.2,1568.8,6.37411593]
[1745289073064,0.7997,1569.2,1568.8,6.37403024]
[1745289073285,7.17250361,1569.2,1568.8,6.37403024]
[1745289073513,0.7997,1569.2,1568.7,7.065]
[1745289073664,6.37364365,1569.0,1568.7,7.065]
[1745289073868,7.64834425,1569.0,1568.7,7.065]
[1745289074102,1.2747006,1569.0,1568.7,13.43941725]
[1745289074281,0.7997,1569.2,1568.8,6.37416037]
[1745289074481,7.17240756,1569.2,1568.8,6.37405598]
[1745289074683,7.17240756,1569.2,1568.8,12.74810397]
[1745289075006,0.7997,1569.2,1568.9,6.37362937]
[1745289075303,7.17250022,1569.2,1568.8,6.37404242]
[1745289075511,6.08,1569.1,1568.9,6.37373355]
[1745289075711,6.08,1569.1,1568.7,13.43946257]
[1745289075915,12.45330481,1569.1,1568.7,6.37446257]
[1745289076073,6.08,1569.1,1568.8,6.37416203]
[1745289076272,13.77837219,1569.1,1568.7,6.37458193]
[1745289076473,13.77837219,1569.1,1568.7,6.37445118]
[1745289076701,7.40526389,1569.1,1568.8,6.37414025]
[1745289077105,7.40526389,1569.1,1568.8,12.74821691]
[1745289077402,6.08,1569.1,1568.8,6.37404985]
[1745289077602,6.08,1569.1,1568.9,6.37386119]
[1745289077821,6.08,1569.1,1568.8,6.37404985]
[1745289078399,6.08,1569.1,1568.6,7.065]
[1745289078400,6.37470516,1568.7,1568.6,7.065]
[1745289078713,12.45343265,1569.1,1568.6,13.43993106]
[1745289078888,1.24534327,1569.0,1568.7,6.37453073]
[1745289079092,7.61886644,1569.0,1568.6,13.43993106]
[1745289079393,7.61886644,1569.0,1568.6,19.81477098]
[1745289079591,7.61886644,1569.0,1568.6,19.81469496]
[1745289080085,1.24534327,1569.0,1568.6,7.065]
[1745289080292,6.08,1569.1,1568.9,6.37386984]
[1745289080488,6.08,1569.1,1568.8,6.37401893]
[1745289080969,6.08,1569.1,1568.8,12.74805245]
[1745289081172,6.08,1569.1,1568.8,6.37401893]
[1745289081609,6.08,1569.1,1568.9,6.37369119]
[1745289081831,6.08,1569.1,1569.0,6.37348629]
[1745289082000,6.08,1569.3,1569.0,6.37348629]
[1745289082177,6.37402501,1568.9,1568.6,6.37509705]
[1745289082371,7.17372501,1568.9,1568.5,6.3752183]
[1745289082669,7.17372501,1568.9,1568.5,12.75049224]
[1745289082883,6.376066,1568.4,1568.0,6.37726343]
[1745289083082,6.376066,1568.4,1567.7,7.20631507]
[1745289083083,6.37731737,1568.1,1567.7,7.20631507]
[1745289083380,13.7311302,1568.4,1567.8,6.37830941]
[1745289083381,6.37686817,1568.2,1567.8,6.37830941]
[1745289083592,13.7311668,1568.4,1567.8,6.37822452]
[1745289083914,13.7311668,1568.4,1568.0,6.37730285]
[1745289084077,13.73112852,1568.4,1568.0,6.37755102]
[1745289084479,13.73112852,1568.4,1568.0,12.75481297]
[1745289084705,13.73112852,1568.4,1568.0,6.37726195]
[1745289085080,6.08,1568.4,1568.2,6.37667488]
[1745289085916,6.08,1568.4,1568.2,6.37650599]
[1745289086122,7.18002485,1568.7,1568.1,0.8006]
[1745289086412,12.45430039,1568.8,1568.4,6.37560037]
[1745289086611,6.08,1568.8,1568.5,6.37536021]
[1745289086918,6.08,1568.8,1568.6,12.74977798]
[1745289087214,6.08,1569.1,1568.8,6.37429784]
[1745289087422,13.25800651,1569.2,1568.8,6.37429784]
[1745289087578,6.8851,1569.2,1569.0,6.37347547]
[1745289087779,6.08,1569.2,1569.0,6.37347547]
[1745289088005,6.08,1569.2,1569.1,6.3730801]
[1745289088193,6.08,1569.3,1569.2,6.37267397]
[1745289088395,6.08,1569.5,1569.3,6.37224523]
[1745289088596,6.08,1569.5,1569.2,6.37245009]
[1745289088804,6.08,1569.5,1569.2,6.27245009]
[1745289089002,6.08,1569.5,1569.2,12.64498765]
[1745289089284,6.08,1569.5,1569.2,6.27245009]
[1745289090285,6.37210369,1569.4,1569.0,7.064]
[1745289090590,0.1504,1569.1,1569.0,7.064]
[1745289090796,0.1504,1569.1,1569.0,13.43748629]
[1745289091320,6.2304,1569.1,1568.7,24.8216]
[1745289091617,6.2304,1569.1,1568.9,6.37388159]
[1745289091618,6.08,1569.0,1568.9,6.37388159]
[1745289091825,6.08,1569.0,1568.9,8.35498175]
[1745289091981,0.1504,1569.1,1569.0,6.37348629]
[1745289093865,0.1504,1569.1,1568.9,6.37361615]
[1745289094452,0.1504,1569.1,1568.8,13.437102]
[1745289094864,0.1504,1569.1,1568.8,19.81115382]
[1745289095023,0.1504,1569.1,1568.9,6.37383357]
[1745289095230,0.1504,1569.1,1569.0,6.37348629]
[1745289095452,0.1504,1569.1,1568.9,13.43583357]
[1745289095660,0.1504,1569.1,1568.9,13.43568728]
[1745289096036,6.2304,1569.1,1568.9,13.43568728]
[1745289096361,6.2304,1569.1,1569.0,6.37348629]
[1745289097235,6.2304,1569.1,1569.0,7.72359194]
[1745289097441,6.2304,1569.1,1569.0,8.52419194]
[1745289098063,6.2304,1569.1,1569.0,11.52419194]
[1745289099253,6.2304,1569.1,1569.0,11.58791651]
[1745289099452,6.08,1569.7,1569.5,12.74231574]
[1745289099665,6.08,1569.7,1569.6,6.37104994]